Cogmind - Beta 15 @@@ ROGUE MODE // 2025.06.09 @ 15:33:04 Player: saltine Result: Destroyed by G-67 Veteran with Field Laser Performance ------------- Evolutions (5) 2500 Regions Visited (19) 3800 Robots Destroyed (213) 1065 Value Destroyed (9461) 9461 Prototype IDs (29) 580 Alien Tech Used (0) 0 Bonus (4985) 4985 TOTAL SCORE: 22391 Bonus ------- High Alert Combat Kills 1158 Follower Combat Kills 369 Entered Garrisons 400 Entered DSFs 500 Met Data Miner 300 Acquired ECA 300 Met Warlord at Base 500 MAIN.C Attacked Warlord 500 Warlord Defense Kills 1060 Friendly Fire -102 Cogmind --------- Core Integrity 0/1000 Matter 272/300 Energy 55/100 System Corruption 9% Temperature Cool (18) Movement Core (50) Location -5/Warlord Parts ------- > --- POWER (2) -------- (None) > --- PROPULSION (5) --- (None) > --- UTILITY (7) ------ Improved Sensor Array Improved Signal Interpreter Experimental Core Analyzer Makeshift Hacking Suite System Mapper > --- WEAPON (3) ------- (None) > --- INVENTORY (5) ---- Micro Antimatter Reactor Experimental Coolant Injector Multitool Vortex Lance Vortex Lance Peak State ------------ > --- POWER ------------ Makeshift Power Source Light Antimatter Reactor Micro Antimatter Reactor > --- PROPULSION ------- Flexi-carbon Leg Flexi-carbon Leg Armored Leg Enhanced Flexi-carbon Leg Myomer Leg Advanced VSS Leg > --- UTILITY ---------- Advanced Cooling System Large Storage Unit Improved Signal Interpreter Improved Medium Armor Plating Makeshift Ablative Armor Makeshift Hacking Suite Makeshift Hacking Suite Rainbow Chip > --- WEAPON ----------- Neutron Cannon Thermoblaster Thermoblaster Plasma Lance > --- INVENTORY -------- Micro Antimatter Reactor Vortex Chain Reactor Armored Leg Armored Leg Myomer Leg Experimental Coolant Injector Improved Sensor Array Makeshift Ablative Armor Experimental Focal Shield System Mapper Multitool Vortex Lance Vortex Lance [Rating: 133] Favorites ----------- Power Improved Deuterium Engine Engine Improved Deuterium Engine Power Core Light Nuclear Core Reactor Antimatter Reactor Propulsion Light Treads Treads Light Treads Leg Enhanced Flexi-carbon Leg Wheel Wheel Hover Unit Combat Gravmag System Flight Unit Nuclear Pulse Array Utility Huge Storage Unit Device Advanced Sensor Array Storage Huge Storage Unit Processor Improved Signal Interpreter Hackware Makeshift Hacking Suite Protection Light Armor Plating Weapon Thermic Laser Energy Gun Thermic Laser Energy Cannon Subdweller Beam Cannon Ballistic Gun Assault Rifle Ballistic Cannon Hypervelocity Gauss Cannon Launcher Grenade Launcher Special Weapon Improved Remote Datajack Impact Weapon Power Maul Slashing Weapon Makeshift Axe Piercing Weapon Plasma Lance Build | -11 -10 -10 -8 -8 -7 -7 -7 -7 -6 -6 -6 -6 -5 -5 -5 -5 -5 -5 -5 ------- Run | Yrd Mat Sub Mat Gar Fac Gar Fac DSF Fac Low Low Dat Pro Fac Was Fac Upp Upp War Slots Evolved 10 | . . . 4 . 2 . . . 2 . . . . 2 . . . . . Power 1 | . . . . . . . . . 1 . . . . . . . . . . Propulsion 3 | . . . 1 . 1 . . . . . . . . 1 . . . . . Utility 5 | . . . 2 . 1 . . . 1 . . . . 1 . . . . . Weapon 1 | . . . 1 . . . . . . . . . . . . . . . . Parts Attached 189 | . 11 9 14 17 11 9 3 10 22 9 3 11 8 3 . 12 6 2 29 Power 22 | . 1 . 2 2 . 1 . 2 3 2 1 3 1 . . 1 . 1 2 Engine 11 | . . . 2 1 . . . 2 2 1 1 1 . . . . . 1 . Core 6 | . 1 . . 1 . 1 . . 1 1 . . . . . 1 . . . Reactor 5 | . . . . . . . . . . . . 2 1 . . . . . 2 Propulsion 51 | . 2 2 3 5 3 3 1 . 5 3 . 4 2 2 . 4 . . 12 Treads 18 | . 2 2 . 5 3 3 1 . . 1 . . . 1 . . . . . Leg 16 | . . . . . . . . . . . . 3 2 . . . . . 11 Wheel 11 | . . . 3 . . . . . 5 2 . 1 . . . . . . . Hover 2 | . . . . . . . . . . . . . . 1 . 1 . . . Flight 4 | . . . . . . . . . . . . . . . . 3 . . 1 Utility 72 | . 4 2 4 8 4 2 1 5 9 4 1 3 3 1 . 7 5 . 9 Device 30 | . 2 1 1 2 1 1 . . 5 3 1 1 2 1 . 5 1 . 3 Storage 3 | . 2 . . . . . . . . . . . . . . . . . 1 Processor 7 | . . . . . . . . 1 1 1 . 1 . . . 1 1 . 1 Hackware 6 | . . . . . 1 . . . . . . . . . . 1 3 . 1 Protection 26 | . . 1 3 6 2 1 1 4 3 . . 1 1 . . . . . 3 Artifact . | . . . . . . . . . . . . . . . . . . . . Weapon 44 | . 4 5 5 2 4 3 1 3 5 . 1 1 2 . . . 1 1 6 Energy Gun 14 | . . . 4 1 3 . . . 5 . . . . . . . . . 1 Energy Cannon 7 | . . 2 1 . . . . . . . 1 . 2 . . . . 1 . Ballistic Gun 8 | . 3 2 . 1 1 . . 1 . . . . . . . . . . . Ballistic Cannon 4 | . . . . . . . 1 2 . . . 1 . . . . . . . Launcher 4 | . . 1 . . . 1 . . . . . . . . . . . . 2 Special Weapon 3 | . 1 . . . . 1 . . . . . . . . . . . . 1 Impact Weapon 2 | . . . . . . 1 . . . . . . . . . . 1 . . Slashing Weapon 1 | . . . . . . . . . . . . . . . . . . . 1 Piercing Weapon 1 | . . . . . . . . . . . . . . . . . . . 1 Special Melee Weapon . | . . . . . . . . . . . . . . . . . . . . Unidentified Prototypes 13 | . . . 1 . . . . . 1 . . 2 . . . 1 . . 8 Corrupted Parts 3 | . . . . . . 2 . . . . . . 1 . . . . . . System Corruption 8 | . . . . . . 6 . . . . . . 2 . . . . . . Parts Lost 82 | . 2 7 2 8 4 10 . 5 8 5 . 1 17 . . 1 . . 12 Power 12 | . 1 1 . 2 . 1 . 1 1 1 . . 3 . . . . . 1 Propulsion 29 | . . 2 1 . 2 5 . . 3 3 . 1 6 . . . . . 6 Utility 16 | . 1 1 1 2 1 1 . 2 2 . . . 2 . . 1 . . 2 Weapon 25 | . . 3 . 4 1 3 . 2 2 1 . . 6 . . . . . 3 Highest Loss Streak 12 | . 1 6 2 2 3 5 . 2 3 2 . 1 12 . . 1 . . 12 To Critical Strikes . | . . . . . . . . . . . . . . . . . . . . Average Backups 18 | 6 10 14 19 24 24 22 18 23 24 24 24 21 13 4 5 4 5 5 10 Power 1 | 1 1 2 3 1 1 1 1 2 2 2 2 1 1 . . . . . 1 Propulsion 2 | 4 3 2 3 6 5 2 . . 2 2 2 1 . . . . 1 1 1 Utility 8 | . 3 5 5 7 9 11 12 12 12 12 13 12 7 1 2 2 1 1 4 Weapon 4 | 1 2 3 5 7 6 5 3 5 6 4 4 3 1 . 1 1 1 1 2 Tool/Special . | . . . . . . . . . . . . . . . . . . . . Unused Backups 49 | . 8 . 1 4 3 . . 5 8 . 1 4 3 . . 2 . . 10 Power 7 | . 1 . . 2 . . . . . . . 1 1 . . . . . 2 Propulsion 12 | . 4 . 1 2 . . . . 1 . . 1 . . . . . . 3 Utility 17 | . 2 . . . . . . 4 2 . 1 2 2 . . 1 . . 3 Weapon 13 | . 1 . . . 3 . . 1 5 . . . . . . 1 . . 2 Tool/Special . | . . . . . . . . . . . . . . . . . . . . Average Slot Usage (%) 90 | . 91 86 93 98 95 95 98 97 91 98 99 96 82 38 41 47 66 61 80 Engine 4 | . 2 . 8 5 . . . 6 10 7 6 6 3 . . . . . 4 Core 3 | . 11 5 . 3 7 6 7 . . 4 6 2 . . . . 4 4 1 Reactor 1 | . . . . . . . . . . . . 3 5 . . . . . 4 Treads 13 | . 26 27 16 26 26 26 23 23 10 2 . . . 4 5 3 . . . Leg 3 | . 1 . . . . . . . . . . 6 15 . . . . . 15 Wheel 6 | . . . 9 . . . 7 5 13 23 26 16 2 . . . . . . Device 10 | . 6 8 16 10 15 17 15 11 8 12 12 7 5 10 11 12 20 14 9 Storage 7 | . 14 14 9 9 7 7 7 7 6 6 6 6 5 . . . . . 2 Processor 7 | . . . . . . . . 5 7 13 13 18 20 17 17 15 10 9 8 Hackware 1 | . . . . . . 6 . . . . . . . . . 1 7 14 10 Protection 6 | . . 2 8 15 13 6 15 11 11 6 6 5 3 . . . . . 2 Energy Gun 8 | . . . 13 18 10 15 7 . 7 16 18 13 5 . . . . . . Energy Cannon 2 | . . 11 6 5 3 . . . . . 1 . 4 . . . . . 2 Ballistic Gun 4 | . 27 10 4 1 7 2 . 5 3 . . . . . . . . . . Ballistic Cannon 1 | . . . . . . . 2 10 1 . . 4 3 . . . . . . Impact Weapon 1 | . . . . . . 2 7 3 3 . . 1 1 . . . 3 4 . Peak Build Rating 133 | 6 11 12 29 30 39 39 37 43 55 62 60 78 77 42 36 63 80 84 133 Average Rating 45 | 6 9 9 22 27 30 36 33 39 48 57 58 63 62 33 36 45 69 80 103 On Entrance 39 | 6 6 10 10 28 25 39 31 37 38 52 59 59 75 19 36 36 63 80 84 Naked Turns . | . . . . . . . . . . . . . . . . . . . . Heaviest Build 137 | 12 89 96 116 116 108 113 115 123 132 132 133 137 84 3 3 17 23 27 89 Greatest Support 115 | 20 40 40 40 60 80 80 10 60 46 46 40 74 89 3 3 32 32 32 115 Greatest Overweight (x) 11 | . 2 4 11 4 1 10 11 11 11 4 3 6 2 . . . . . 1 Average Overweight (x) 1 | . . 1 9 1 1 2 10 10 3 3 3 2 . . . . . . . Largest Inventory Capacity 25 | 8 25 25 25 25 25 25 25 25 25 25 25 25 15 5 5 5 5 5 15 Average Capacity 20 | 8 15 24 25 25 25 25 25 25 25 25 25 23 14 5 5 5 5 5 11 Most Carried 25 | 7 15 18 25 25 25 25 20 25 25 25 25 25 15 5 5 5 5 5 15 Average Carried 18 | 6 10 14 19 24 24 22 18 23 24 24 24 21 13 4 5 4 5 5 11 Final Capacity 25 | 8 15 25 25 25 25 25 25 25 25 25 25 15 5 5 5 5 5 5 5 Final Carried 25 | 7 15 18 25 25 25 19 20 25 25 25 25 15 5 5 5 5 5 5 5 Class Distribution -------------------- 28% | Scavenger-Mutant 24% | Scavenger-Tank 16% | Mutant 14% | Scavenger-Skirmisher 11% | Scavenger-Gunner Dominant Class ---------------- Mutant | -10/Materials Scavenger-Mutant | -10/Subcaves Scavenger-Tank | -8/Materials Scavenger-Tank | -8/Garrison Scavenger-Tank | -7/Factory Scavenger-Tank | -7/Garrison Scavenger-Mutant | -7/Factory Scavenger-Mutant | -7/DSF Scavenger-Mutant | -6/Factory Scavenger-Skirmisher | -6/Lower Caves Scavenger-Skirmisher | -6/Lower Caves Scavenger-Gunner | -6/Data Miner Scavenger-Mutant | -5/Proximity Caves Mutant | -5/Factory Mutant | -5/Waste Mutant | -5/Factory Mutant | -5/Upper Caves Hacker-Mutant | -5/Upper Caves Scavenger-Mutant | -5/Warlord Resources | -11 -10 -10 -8 -8 -7 -7 -7 -7 -6 -6 -6 -6 -5 -5 -5 -5 -5 -5 -5 ----------- Run | Yrd Mat Sub Mat Gar Fac Gar Fac DSF Fac Low Low Dat Pro Fac Was Fac Upp Upp War Matter Collected 6319 | 221 595 385 159 490 161 472 54 833 840 599 90 309 357 20 . 1 290 20 423 Remotely 96 | . . . . . . . . . . 96 . . . . . . . . . Salvage Created 9004 | 123 869 387 497 1930 569 669 54 263 1311 523 163 381 694 20 . . 97 66 388 Parts 429 | 4 65 23 29 99 19 45 . 17 38 29 10 17 22 . . . . . 12 Haulers Intercepted 9 | . 2 . 1 . 1 . . 1 4 . . . . . . . . . . Recyclers Shooed 7 | . 6 . . . . . . . 1 . . . . . . . . . . Parts Field Recycled . | . . . . . . . . . . . . . . . . . . . . Retrieved Matter . | . . . . . . . . . . . . . . . . . . . . Parts Self-Destructed 58 | . . 7 . . . . . . . 26 7 . 18 . . . . . . Prevented 6 | . . . . . . . . . . . . . 6 . . . . . . Kills | -11 -10 -10 -8 -8 -7 -7 -7 -7 -6 -6 -6 -6 -5 -5 -5 -5 -5 -5 -5 ------- Run | Yrd Mat Sub Mat Gar Fac Gar Fac DSF Fac Low Low Dat Pro Fac Was Fac Upp Upp War Combat Hostiles Destroyed 167 | . 13 9 7 39 8 29 . 9 11 10 4 4 16 . . . . . 8 Melee 4 | . . . . . . . . . 1 . . . 2 . . . . . 1 Guns 76 | . 13 4 4 23 5 11 . . 4 5 4 . 3 . . . . . . Cannons 26 | . . 3 3 2 2 . . 4 1 . . 4 6 . . . . . 1 AOE 48 | . . 2 . 10 . 18 . 4 4 5 . . 1 . . . . . 4 Classes Destroyed 26 | 2 4 2 2 3 3 1 . 1 2 2 . . 2 . . . . . 2 Worker 8 | . . . . . 3 . . . 5 . . . . . . . . . . Builder 4 | . . . . . 1 . . . 3 . . . . . . . . . . Tunneler 6 | 1 5 . . . . . . . . . . . . . . . . . . Hauler 9 | . 2 . 1 . 1 . . 1 4 . . . . . . . . . . Recycler 12 | 1 3 . 1 . 2 . 1 . 4 . . . . . . . . . . Minesweeper 1 | . . . . . . . . . . 1 . . . . . . . . . Mechanic 1 | . 1 . . . . . . . . . . . . . . . . . . Operator 1 | . . . . . . . . . 1 . . . . . . . . . . Drone 1 | . . . . . . . . . . . . . 1 . . . . . . Watcher 2 | . . . . . . . . . 1 . . . . 1 . . . . . Swarmer 43 | . 6 . . 6 . 12 . 4 2 4 4 . 5 . . . . . . Cutter 3 | . . . . . . 3 . . . . . . . . . . . . . Saboteur 1 | . . . . . . . . . . . . . . . . . . . 1 Grunt 59 | . 7 2 4 14 3 13 . . 4 6 . . 5 . . . . . 1 Brawler 5 | . . . . 1 1 . . . . . . . 1 . . . . . 2 Duelist 10 | . . . 1 5 1 . . . 1 . . . 2 . . . . . . Protector 2 | . . . . . . . . . . . . . 1 . . . . . 1 Sentry 18 | . . . 2 11 1 1 . . 2 . . . 1 . . . . . . Specialist 4 | . . . . 1 . . . 2 . . . . . . . . . . 1 Hunter 4 | . . . . 1 1 . . 2 . . . . . . . . . . . Programmer 5 | . . . . . 1 . . . 2 . . . . . . . . . 2 Heavy 1 | . . . . . . . . 1 . . . . . . . . . . . Enhanced Grunt 4 | . . . . . . . . . . . . 4 . . . . . . . Executioner 1 | . . . . . . . . . . . . . . . . . . . 1 Artisan 1 | . . 1 . . . . . . . . . . . . . . . . . Subdweller 7 | . . 7 . . . . . . . . . . . . . . . . . Decomposer 3 | . . . . . . . . . . 1 2 . . . . . . . . Packrat 1 | . . . . . . . . . . . . . . . . . 1 . . Samaritan 3 | . . . . . . . . . . 3 . . . . . . . . . Surgeon 1 | . . . . . . . . . . . . . . . . . . . 1 Best Kill Streak 9 | 1 3 2 3 5 9 7 1 5 6 4 4 3 5 1 . . . . 6 Combat Bots Only 7 | . 3 2 3 5 3 7 . 5 4 4 4 3 5 . . . . . 6 Max Kills in Single Turn 3 | 1 2 2 1 2 3 3 1 3 2 2 2 1 1 1 . . 1 . 3 Gunslinging 1 | . 1 . . . . 1 . . . 1 1 . . . . . . . . Exploded 3 | . . 2 . 2 . 3 . 3 2 1 . . 1 . . . . . 2 Melee 1 | . . . . . . . . . 1 . . . 1 . . . . . 1 Uniques/NPCs Destroyed . | . . . . . . . . . . . . . . . . . . . . Combat | -11 -10 -10 -8 -8 -7 -7 -7 -7 -6 -6 -6 -6 -5 -5 -5 -5 -5 -5 -5 -------- Run | Yrd Mat Sub Mat Gar Fac Gar Fac DSF Fac Low Low Dat Pro Fac Was Fac Upp Upp War Hostile Shots Fired 1222 | . 63 51 46 130 55 162 . 47 115 75 14 12 205 3 . 45 . . 199 Missed 379 | . 18 13 15 43 17 54 . 12 47 24 7 3 51 . . 18 . . 57 Hits 843 | . 45 38 31 87 38 108 . 35 68 51 7 9 154 3 . 27 . . 142 Melee 39 | . . . . 7 7 4 . . 3 . . . 9 . . . . . 9 Projectile 804 | . 45 38 31 80 31 104 . 35 65 51 7 9 145 3 . 27 . . 133 AOE 3 | . . 1 . . . 2 . . . . . . . . . . . . . Critical Strikes 35 | . . 1 . 4 2 2 . 1 1 2 1 . 11 . . 1 . . 9 Damage Taken 15104 | . 393 857 458 1469 604 1448 . 1074 970 839 84 312 3246 40 . 419 . . 2891 Core 2294 | . 43 113 33 64 72 178 . . 108 93 11 . 568 . . 142 . . 869 Absorbed by Shields 820 | . 103 . . . . . . . 44 40 20 109 . . . . . . 504 Redirected to Shielding 11 | . . 8 3 . . . . . . . . . . . . . . . . Ignored by Resistances 66 | . . . 10 56 . . . . . . . . . . . . . . . Regen/Repaired (Parts) 238 | . . . . . . . 65 . 136 . . . . . . . . . 37 Core Remaining (%) 58 | 100 . 37 . 82 . . . 64 . . . . 8 . . . . . . Volleys Fired 537 | 7 76 50 35 83 21 50 . 17 67 49 9 12 33 1 . 1 . . 26 Largest 3 | 2 2 2 3 3 3 3 . 3 3 3 3 1 3 1 . 1 . . 2 Hottest 520 | 70 100 160 180 163 240 240 . 117 255 255 255 90 265 90 . 90 . . 520 Shots Fired 1014 | 14 149 76 66 183 56 79 1 42 145 81 19 12 62 1 . 1 . . 27 Gun 730 | 14 148 53 40 150 50 61 1 11 123 50 15 . 14 . . . . . . Cannon 184 | . . 11 18 27 6 . . 29 14 8 4 12 48 1 . 1 . . 5 Launcher 59 | . . 2 . 6 . 18 . 2 8 11 . . . . . . . . 12 Special 41 | . 1 10 8 . . . . . . 12 . . . . . . . . 10 Kinetic 372 | 7 141 53 19 5 22 17 . 40 40 8 . 11 9 . . . . . . Thermal 407 | 7 8 21 27 12 34 44 1 . 97 62 19 1 53 1 . 1 . . 19 Explosive 47 | . . 2 . 6 . 18 . 2 8 11 . . . . . . . . . Electromagnetic 180 | . . . 20 160 . . . . . . . . . . . . . . . Robot Hit Streak 20 | 5 14 17 7 18 14 13 . 7 9 20 3 6 11 4 . . . . 7 Robot Miss Streak 6 | 2 6 2 4 3 5 6 . 2 3 3 2 1 4 . . . . . 3 Penetration Max 1 | . . . . . 1 . . . . . . . . . . . . . . Secondary Targets 17 | . 5 1 . 5 1 3 . . . 1 1 . . . . . . . . Max Gunslinging Chain 1 | . 1 1 . 1 1 1 . . . 1 1 . . . . . . . . Shots Hit Robots 678 | 8 96 55 29 126 38 50 1 29 102 48 8 9 48 1 . . 1 1 28 Core Hits 406 | 3 37 19 17 78 25 65 . 15 50 39 6 4 24 1 . . . 1 22 Critical Kills 5 | . . . . . . . . . . . . 4 1 . . . . . . Critical Parts Destroyed 7 | . 1 . . . . . . . 4 . . 1 1 . . . . . . Critical Strikes 35 | . 1 1 . . . . . . 18 5 1 6 2 . . . . . 1 Burn 19 | . . . . . . . . . 13 5 1 . . . . . . . . Meltdown 1 | . . . . . . . . . . . . . 1 . . . . . . Destroy 10 | . 1 1 . . . . . . 1 . . 6 1 . . . . . . Blast 1 | . . . . . . . . . 1 . . . . . . . . . . Smash 3 | . . . . . . . . . 3 . . . . . . . . . . Impale 1 | . . . . . . . . . . . . . . . . . . . 1 Melee Attacks 59 | . . . . . . 4 2 2 11 . . 11 16 . . . 1 1 11 Impact 48 | . . . . . . 4 2 2 11 . . 11 16 . . . 1 1 . Slashing 6 | . . . . . . . . . . . . . . . . . . . 6 Piercing 5 | . . . . . . . . . . . . . . . . . . . 5 Sneak Attacks 13 | . . . . . . . 1 . 6 . . . . . . . 1 . 5 Combat Hostiles . | . . . . . . . . . . . . . . . . . . . . Follow-up Attacks . | . . . . . . . . . . . . . . . . . . . . Damage Inflicted 20411 | 99 1210 901 555 3218 1423 2570 93 917 3337 1369 159 120 1846 35 . . 80 139 2340 Guns 8540 | 99 1205 430 303 2205 778 1028 . 149 1461 648 126 . 108 . . . . . . Cannons 2921 | . . 257 252 118 86 . . 486 354 . 33 120 1031 35 . . . . 149 Explosions 6760 | . . 214 . 895 559 1542 . 172 843 676 . . 212 . . . . . 1647 Melee 2121 | . . . . . . . 93 110 679 . . . 491 . . . 80 139 529 Ramming 12 | . 5 . . . . . . . . . . . 4 . . . . . 3 Kinetic 3720 | 24 1179 430 72 30 317 239 . 635 675 . . 87 32 . . . . . . Thermal 7678 | 75 26 257 316 481 547 789 . . 1140 693 159 33 1319 35 . . . . 1808 Explosive 4506 | . . 214 . 500 559 1542 . 172 843 676 . . . . . . . . . Electromagnetic 2374 | . . . 167 2207 . . . . . . . . . . . . . . . Impact 1592 | . . . . . . . 93 110 679 . . . 491 . . . 80 139 . Slashing 379 | . . . . . . . . . . . . . . . . . . . 379 Piercing 150 | . . . . . . . . . . . . . . . . . . . 150 Highest Corruption 9 | . . . . . . 6 6 6 4 4 4 4 7 . 5 5 5 5 9 Average Corruption 4 | . . . . . . 5 6 6 3 4 4 4 5 . 5 5 5 5 7 Corruption Purged . | . . . . . . . . . . . . . . . . . . . . Corruption Blocked . | . . . . . . . . . . . . . . . . . . . . Effects 177 | . . . . . . 11 10 20 11 35 13 15 45 . 1 5 4 4 3 Message Errors 44 | . . . . . . 1 4 2 4 9 6 4 13 . . 1 . . . Matter Fused 41 | . . . . . . . 4 5 1 8 3 5 11 . 1 2 . 1 . Heat Flow Errors 23 | . . . . . . 2 . 2 3 5 2 1 4 . . . 1 2 1 Energy Discharges 18 | . . . . . . 1 . 3 . 4 . 2 5 . . 1 1 . 1 Parts Rejected 1 | . . . . . . . . . . 1 . . . . . . . . . Parts Fused 2 | . . . . . . . . . . 1 . 1 . . . . . . . Data Loss (minor) 25 | . . . . . . 4 1 4 2 5 1 . 6 . . . 1 . 1 Data Loss (major) 7 | . . . . . . . . 2 1 . . 1 1 . . 1 . 1 . Misfires 5 | . . . . . . 1 1 . . 2 . . 1 . . . . . . Alerts 8 | . . . . . . 1 . 1 . . 1 1 3 . . . 1 . . Weapon Failures 3 | . . . . . . 1 . 1 . . . . 1 . . . . . . Overload Shots . | . . . . . . . . . . . . . . . . . . . . Overflow Damage 838 | . . . . 46 97 28 63 . 388 1 . . 62 . . . 70 . 83 Projectiles 35 | . . . . . . . . . 32 1 . . 2 . . . . . . Explosions 276 | . . . . 46 97 28 . . . . . . 39 . . . . . 66 Melee 527 | . . . . . . . 63 . 356 . . . 21 . . . 70 . 17 Knockbacks 8 | . . . . . . . . 2 5 . . . 1 . . . . . . Impact 3 | . . . . . . . . 1 2 . . . . . . . . . . Kinetic 5 | . . . . . . . . 1 3 . . . 1 . . . . . . Secondary . | . . . . . . . . . . . . . . . . . . . . Self-Inflicted Damage 572 | . . 11 . 191 . 132 . . 123 34 . . 81 . . . . . . Shots 19 | . . 1 . 6 . 5 . . 4 2 . . 1 . . . . . . Rammed 2 | . 2 . . . . . . . . . . . . . . . . . . Targets Rammed 6 | . 3 . . . . . . . . . . . 2 . . . . . 1 Kicked 4 | . 1 . . . . . . . . . . . 2 . . . . . 1 Crushed . | . . . . . . . . . . . . . . . . . . . . Highest Temperature 473 | 45 63 48 36 325 156 473 8 280 365 278 325 151 388 10 . 292 81 216 243 Average Temperature 97 | 19 21 16 16 82 49 121 6 102 109 94 117 44 144 7 . 129 57 111 134 Received Heat Transfer 3539 | . 162 96 234 486 111 465 . 45 184 183 . . 844 . . 362 . . 367 Effects 11 | . . . . 2 . 1 . . 1 . 1 . 3 . . . . . 3 Shutdowns 1 | . . . . . . 1 . . . . . . . . . . . . . Energy Bleed 7 | . . . . 2 . . . . 1 . 1 . 2 . . . . . 1 Interference 3 | . . . . . . . . . . . . . 1 . . . . . 2 Siege Activations . | . . . . . . . . . . . . . . . . . . . . Martial Activations . | . . . . . . . . . . . . . . . . . . . . Shielding Activations . | . . . . . . . . . . . . . . . . . . . . Robots Disrupted 2 | . . . . 1 . . . . . . . . 1 . . . . . . Combat Hostiles 2 | . . . . 1 . . . . . . . . 1 . . . . . . Robots Corrupted 12 | . . . . 4 . . . 1 4 . . . 3 . . . . . . Combat Hostiles 8 | . . . . 4 . . . 1 . . . . 3 . . . . . . Parts Fried 36 | . . . 2 19 . . 2 1 6 . . . 6 . . . . . . Impact Corruptions 19 | . . . . . . . 1 1 11 . . . 3 . . . 3 . . Robots Melted 6 | . . . . . 1 . . . 2 . . . 1 . . . . . 2 Combat Hostiles 5 | . . . . . 1 . . . 1 . . . 1 . . . . . 2 Parts Melted 45 | 1 . 2 . 2 4 2 . . 10 13 1 . 3 . . . . . 7 Heat Transferred 15463 | 222 74 333 408 412 1111 1775 . . 4400 2475 500 50 856 . . . . . 2847 Parts Sabotaged 7 | . . . . . . . . . . . . . . . . . . . 7 Parts Stolen . | . . . . . . . . . . . . . . . . . . . . Parts Stripped . | . . . . . . . . . . . . . . . . . . . . Power Chain Reactions 8 | . . . 1 6 . . . . . . . . 1 . . . . . . Alert | -11 -10 -10 -8 -8 -7 -7 -7 -7 -6 -6 -6 -6 -5 -5 -5 -5 -5 -5 -5 ------- Run | Yrd Mat Sub Mat Gar Fac Gar Fac DSF Fac Low Low Dat Pro Fac Was Fac Upp Upp War Maximum Alert Level 4 | . . . . 4 3 4 2 2 1 . . . . 1 . . . . . Low Security (%) 45 | 100 100 . 100 13 . . . . 80 . . . . . 100 100 . . . Level 1 9 | . . . . 19 . . . 15 19 . . . . 100 . . . . . Level 2 26 | . . . . 26 99 19 100 84 . . . . . . . . . . . Level 3 10 | . . . . 22 . 45 . . . . . . . . . . . . . Level 4 8 | . . . . 18 . 35 . . . . . . . . . . . . . Level 5 . | . . . . . . . . . . . . . . . . . . . . High Security . | . . . . . . . . . . . . . . . . . . . . Max Security . | . . . . . . . . . . . . . . . . . . . . Sterilizations 1 | . . . . . . . . 1 . . . . . . . . . . . Peak Influence 1295 | 5 103 . 61 1227 703 1295 663 578 395 . . . . 300 82 43 . . . Initial 663 | . . . . 9 644 464 663 364 303 . . . . 300 82 43 . . . Average 392 | 2 33 . 16 648 618 952 589 451 131 . . . . 269 74 14 . . . Influence Increases 5729 | 10 453 50 241 1338 441 901 18 264 444 250 90 . 385 307 . 104 . 5 428 Destroy 0b10 Robot/C 3240 | . 260 40 140 780 180 580 . 180 220 200 80 . 280 . . . . . 300 Destroy 0b10 Robot/NC 240 | 10 55 . 10 . 35 . 5 5 90 5 . . 10 5 . . . 5 5 Destroy Leader 388 | . 64 10 32 40 42 40 . 40 58 30 10 . 20 2 . . . . . Allied During Kill 68 | . . . . 7 13 . . . . . . . . . . . . . 48 Successful Hack 89 | . 43 . 13 7 . . 12 . . . . . . . . 14 . . . Select Force Hacks 30 | . 30 . . . . . . . . . . . . . . . . . . Disable Machine 255 | . . . 30 15 150 15 . . 30 . . . . . . 15 . . . Anti-Garrison Action 550 | . . . . 400 . 150 . . . . . . . . . . . . . Destroy Structure 209 | . 1 . 16 59 21 71 1 9 31 . . . . . . . . . . Advance Influence 300 | . . . . . . . . . . . . . . 300 . . . . . Lose Combat Pursuer 360 | . . . . 30 . 45 . 30 15 15 . . 75 . . 75 . . 75 Influence Decreases 5695 | 10 424 79 227 125 1005 299 762 207 969 303 90 . 385 70 175 151 15 5 394 Entered New Map 2036 | . . 15 . 5 583 199 602 157 275 20 . . . . 155 19 6 . . Time Decay 2652 | 10 409 34 217 . 342 . 160 . 464 253 90 . 233 70 20 132 9 5 204 Lost Part 687 | . 15 30 10 80 40 100 . 50 80 30 . . 132 . . . . . 120 Lost Ally 170 | . . . . 40 40 . . . . . . . 20 . . . . . 70 Purge Threat 150 | . . . . . . . . . 150 . . . . . . . . . . Squads Dispatched 11 | . 2 . 1 . 2 . 1 1 2 . . . 1 . . 1 . . . Investigation 3 | . 1 . 1 . . . 1 . . . . . . . . . . . . Extermination 4 | . . . . . 2 . . . 2 . . . . . . . . . . Reinforcement 3 | . 1 . . . . . . 1 . . . . . . . 1 . . . Assault 1 | . . . . . . . . . . . . . 1 . . . . . . Garrison . | . . . . . . . . . . . . . . . . . . . . Intercept . | . . . . . . . . . . . . . . . . . . . . Searches Triggered . | . . . . . . . . . . . . . . . . . . . . Construction Impeded . | . . . . . . . . . . . . . . . . . . . . Haulers Reinforced . | . . . . . . . . . . . . . . . . . . . . Active Scanning Responses . | . . . . . . . . . . . . . . . . . . . . Cargo Convoy Interrupts . | . . . . . . . . . . . . . . . . . . . . Stealth | -11 -10 -10 -8 -8 -7 -7 -7 -7 -6 -6 -6 -6 -5 -5 -5 -5 -5 -5 -5 --------- Run | Yrd Mat Sub Mat Gar Fac Gar Fac DSF Fac Low Low Dat Pro Fac Was Fac Upp Upp War Distress Signals 7 | . 2 . 1 . . . . . 1 . . . 2 . . . . . 1 Communications Jammed 5 | . . . . . . . . 5 . . . . . . . . . . . Distress Signals . | . . . . . . . . . . . . . . . . . . . . Times Spotted 297 | . 25 10 10 39 10 30 . 11 23 11 4 4 31 4 4 7 . . 74 Peak Tracking Total 17 | . 5 3 3 4 3 6 . 4 5 4 4 2 8 4 5 4 . . 17 Tactical Retreats 19 | . . . . 2 . 2 . 2 1 1 . . 5 . . 4 . . 2 Traps | -11 -10 -10 -8 -8 -7 -7 -7 -7 -6 -6 -6 -6 -5 -5 -5 -5 -5 -5 -5 ------- Run | Yrd Mat Sub Mat Gar Fac Gar Fac DSF Fac Low Low Dat Pro Fac Was Fac Upp Upp War Traps Triggered 23 | . 2 . 1 9 . 7 . 1 1 . . . . 1 . 1 . . . Indirectly . | . . . . . . . . . . . . . . . . . . . . Trap Hack Attempts . | . . . . . . . . . . . . . . . . . . . . Triggered . | . . . . . . . . . . . . . . . . . . . . Disarmed . | . . . . . . . . . . . . . . . . . . . . Reprogrammed 1 | . 1 . . . . . . . . . . . . . . . . . . Reused 2 | . . . . . . . . . . . . . 2 . . . . . . Traps Extracted . | . . . . . . . . . . . . . . . . . . . . Installed 2 | . . . . . . . . . . . . . 2 . . . . . . Triggered 2 | . . . . . . . . . . . . . 2 . . . . . . Most Traps Carried 3 | . . . . . . . . . . 3 3 3 3 . . . . . . Machines | -11 -10 -10 -8 -8 -7 -7 -7 -7 -6 -6 -6 -6 -5 -5 -5 -5 -5 -5 -5 ---------- Run | Yrd Mat Sub Mat Gar Fac Gar Fac DSF Fac Low Low Dat Pro Fac Was Fac Upp Upp War Machines Disabled 27 | . . . 2 7 10 4 . . 2 . . 1 . . . 1 . . . Max in Single Turn 4 | . . . 1 1 4 1 . . 1 . . 1 . . . 1 . . . Garrison Relay 9 | . . . . 6 . 3 . . . . . . . . . . . . . Machines Repaired . | . . . . . . . . . . . . . . . . . . . . Machines Dismantled . | . . . . . . . . . . . . . . . . . . . . Machines Sabotaged . | . . . . . . . . . . . . . . . . . . . . Overloaded Fab Kills . | . . . . . . . . . . . . . . . . . . . . Hacking | -11 -10 -10 -8 -8 -7 -7 -7 -7 -6 -6 -6 -6 -5 -5 -5 -5 -5 -5 -5 --------- Run | Yrd Mat Sub Mat Gar Fac Gar Fac DSF Fac Low Low Dat Pro Fac Was Fac Upp Upp War Machines Accessed 42 | . 9 . 4 2 2 1 3 . 6 1 1 4 . . . 4 1 . 4 Terminals 21 | . 7 . 2 2 1 1 2 . 3 . . . . . . 3 . . . Fabricators 2 | . . . . . . . . . 1 . . . . . . 1 . . . Repair Stations 3 | . 1 . . . . . 1 . 1 . . . . . . . . . . Recycling Units 2 | . 1 . . . . . . . 1 . . . . . . . . . . Scanalyzers 1 | . . . 1 . . . . . . . . . . . . . . . . Garrison Access 2 | . . . 1 . 1 . . . . . . . . . . . . . . Total Hacks 126 | . 29 . 8 6 3 1 9 . 15 4 1 31 . . . 8 1 . 10 Successful 87 | . 19 . 5 1 1 . 5 . 6 4 1 31 . . . 3 1 . 10 Failed 39 | . 10 . 3 5 2 1 4 . 9 . . . . . . 5 . . . Catastrophic 7 | . . . . 1 . 1 . . 2 . . . . . . 3 . . . Database Lockouts . | . . . . . . . . . . . . . . . . . . . . Manual 25 | . 13 . 3 . . 1 4 . 2 . . . . . . 1 . . 1 Terminals 55 | . 21 . 6 6 2 1 8 . 5 . . . . . . 6 . . . Fabricators 5 | . . . . . . . . . 3 . . . . . . 2 . . . Repair Stations 8 | . 5 . . . . . 1 . 2 . . . . . . . . . . Recycling Units 8 | . 3 . . . . . . . 5 . . . . . . . . . . Scanalyzers 1 | . . . 1 . . . . . . . . . . . . . . . . Garrison Access 2 | . . . 1 . 1 . . . . . . . . . . . . . . Terminal Hacks 65 | . 9 . 1 1 . . 3 . 1 4 1 31 . . . 3 1 . 10 Record 24 | . . . . . . . . . . 4 . 11 . . . . . . 9 Part Schematic 12 | . . . . . . . . . . . . 12 . . . . . . . Robot Schematic 5 | . . . . . . . . . . . . 5 . . . . . . . Robot Analysis 1 | . 1 . . . . . . . . . . . . . . . . . . Prototype ID Bank 5 | . 1 . 1 . . . . . . . . 3 . . . . . . . Open Door 4 | . . . . 1 . . . . . . 1 . . . . . 1 . 1 Open DSF 1 | . . . . . . . 1 . . . . . . . . . . . . Branch Access Points 1 | . . . . . . . 1 . . . . . . . . . . . . Terminal Index 2 | . 1 . . . . . . . . . . . . . . 1 . . . Unreport Threat 1 | . . . . . . . . . 1 . . . . . . . . . . Locate Traps 1 | . 1 . . . . . . . . . . . . . . . . . . Reprogram Traps 1 | . 1 . . . . . . . . . . . . . . . . . . Hauler Manifests 4 | . 2 . . . . . 1 . . . . . . . . 1 . . . Registered Components 1 | . . . . . . . . . . . . . . . . 1 . . . Zone Layout 2 | . 2 . . . . . . . . . . . . . . . . . . Fabricator Hacks . | . . . . . . . . . . . . . . . . . . . . Repair Station Hacks 4 | . 2 . . . . . . . 2 . . . . . . . . . . Scan Component 3 | . 2 . . . . . . . 1 . . . . . . . . . . Repair 1 | . . . . . . . . . 1 . . . . . . . . . . Recycling Unit Hacks 2 | . 1 . . . . . . . 1 . . . . . . . . . . Retrieve Components 2 | . 1 . . . . . . . 1 . . . . . . . . . . Scanalyzer 1 | . . . 1 . . . . . . . . . . . . . . . . Insert Component 1 | . . . 1 . . . . . . . . . . . . . . . . Garrison Access Hacks 2 | . . . 1 . 1 . . . . . . . . . . . . . . Unlock Access 2 | . . . 1 . 1 . . . . . . . . . . . . . . Unauthorized Hacks 13 | . 7 . 2 . . . 2 . 2 . . . . . . . . . . Terminals 8 | . 5 . 2 . . . 1 . . . . . . . . . . . . Botnet 1 | . . . . . . . 1 . . . . . . . . . . . . Skim 7 | . 5 . 2 . . . . . . . . . . . . . . . . Fabricators . | . . . . . . . . . . . . . . . . . . . . Repair Stations 1 | . . . . . . . 1 . . . . . . . . . . . . Patch 1 | . . . . . . . 1 . . . . . . . . . . . . Recycling Units 4 | . 2 . . . . . . . 2 . . . . . . . . . . Monitor 1 | . . . . . . . . . 1 . . . . . . . . . . Recyclers 2 | . 1 . . . . . . . 1 . . . . . . . . . . Tunnel 1 | . 1 . . . . . . . . . . . . . . . . . . Scanalyzers . | . . . . . . . . . . . . . . . . . . . . Garrison Access . | . . . . . . . . . . . . . . . . . . . . Data Cores Recovered 1 | . . . . . . . . . 1 . . . . . . . . . . Used . | . . . . . . . . . . . . . . . . . . . . Hacking Detections 24 | . 7 . 2 2 1 . 2 . 6 . . . . . . 4 . . . Full Trace Events . | . . . . . . . . . . . . . . . . . . . . Feedback Events . | . . . . . . . . . . . . . . . . . . . . Feedback Blocked . | . . . . . . . . . . . . . . . . . . . . Robot Schematics Acquired 5 | . . . . . . . . . . . . 5 . . . . . . . Robots Built . | . . . . . . . . . . . . . . . . . . . . Authchips . | . . . . . . . . . . . . . . . . . . . . Time . | . . . . . . . . . . . . . . . . . . . . Total Robot Build Rating . | . . . . . . . . . . . . . . . . . . . . Part Schematics Acquired 12 | . . . . . . . . . . . . 12 . . . . . . . Parts Built . | . . . . . . . . . . . . . . . . . . . . Authchips . | . . . . . . . . . . . . . . . . . . . . Time . | . . . . . . . . . . . . . . . . . . . . Total Part Build Rating . | . . . . . . . . . . . . . . . . . . . . Parts Repaired 1 | . . . . . . . . . 1 . . . . . . . . . . Time 26 | . . . . . . . . . 26 . . . . . . . . . . Parts Recycled . | . . . . . . . . . . . . . . . . . . . . Recycled Matter . | . . . . . . . . . . . . . . . . . . . . Retrieved Matter . | . . . . . . . . . . . . . . . . . . . . Retrieved Components 4 | . 2 . . . . . . . 2 . . . . . . . . . . Parts Scanalyzed . | . . . . . . . . . . . . . . . . . . . . Part Schematics Acquired . | . . . . . . . . . . . . . . . . . . . . Parts Damaged . | . . . . . . . . . . . . . . . . . . . . Bothacking | -11 -10 -10 -8 -8 -7 -7 -7 -7 -6 -6 -6 -6 -5 -5 -5 -5 -5 -5 -5 ------------ Run | Yrd Mat Sub Mat Gar Fac Gar Fac DSF Fac Low Low Dat Pro Fac Was Fac Upp Upp War Used RIF Installer . | . . . . . . . . . . . . . . . . . . . . Robots Hacked 1 | . . . . . . . . . . . . . . . . . . . 1 Non-combat . | . . . . . . . . . . . . . . . . . . . . Combat 1 | . . . . . . . . . . . . . . . . . . . 1 Robot Hacks Applied 1 | . . . . . . . . . . . . . . . . . . . 1 parse_system 1 | . . . . . . . . . . . . . . . . . . . 1 Relay Couplers Released 40 | . . . . 27 . 13 . . . . . . . . . . . . . Machine Destruction 40 | . . . . 27 . 13 . . . . . . . . . . . . . Fabnet Peak Effective % . | . . . . . . . . . . . . . . . . . . . . Robots Rewired 10 | . . . . 4 . . . . . . . . 1 . . . . . 5 Allies Hacked . | . . . . . . . . . . . . . . . . . . . . Hacks Repelled . | . . . . . . . . . . . . . . . . . . . . Allies | -11 -10 -10 -8 -8 -7 -7 -7 -7 -6 -6 -6 -6 -5 -5 -5 -5 -5 -5 -5 -------- Run | Yrd Mat Sub Mat Gar Fac Gar Fac DSF Fac Low Low Dat Pro Fac Was Fac Upp Upp War Total Allies 12 | . . . . 4 . . . . . 2 . . 1 . . . . . 5 Largest Group 5 | . . . . 2 2 . . . . 2 . . 1 . . . . . 5 Highest-Rated Group 260 | . . . . 62 42 . . . . 40 . . 30 . . . . . 260 Highest-Rated Ally 68 | . . . . 31 24 . . . . 20 . . 30 . . . . . 68 Initial Warlord ECA Mod 292 | . . . . . 9 9 14 14 23 23 23 23 22 22 22 22 22 22 22 Total Orders . | . . . . . . . . . . . . . . . . . . . . Ally Attacks 82 | . . . . 12 12 . . . . . . . 4 . . . . . 54 Total Damage 2970 | . . . . 148 220 . . . . . . . 125 . . . . . 2477 Kills 11 | . . . . . 1 . . . . . . . . . . . . . 10 Allies Corrupted . | . . . . . . . . . . . . . . . . . . . . Allies Melted 2 | . . . . . . . . . . . . . . . . . . . 2 Intel | -11 -10 -10 -8 -8 -7 -7 -7 -7 -6 -6 -6 -6 -5 -5 -5 -5 -5 -5 -5 ------- Run | Yrd Mat Sub Mat Gar Fac Gar Fac DSF Fac Low Low Dat Pro Fac Was Fac Upp Upp War Active Infowar (turns) 10688 | . 127 458 685 377 664 897 324 558 680 1297 828 322 1612 136 45 204 181 173 1120 Sensors 6268 | . . . . . . . . . 350 1297 828 322 1612 136 45 204 181 173 1120 IFF 311 | . . . . . . . . . 311 . . . . . . . . . . Seismic 3713 | . 127 458 685 377 664 724 324 354 . . . . . . . . . . . Jamming 909 | . . . . . . 605 . 285 19 . . . . . . . . . . ECM 2 | . . . . . . . . . . . . . . . . . 2 . . Robot Analysis Total 1 | . 1 . . . . . . . . . . . . . . . . . . Derelict Logs Recovered 9 | . . 1 . . . . . . . 1 2 . 1 . . . 1 3 . Drone Launches . | . . . . . . . . . . . . . . . . . . . . Drone Recoveries . | . . . . . . . . . . . . . . . . . . . . Exploration | -11 -10 -10 -8 -8 -7 -7 -7 -7 -6 -6 -6 -6 -5 -5 -5 -5 -5 -5 -5 ------------- Run | Yrd Mat Sub Mat Gar Fac Gar Fac DSF Fac Low Low Dat Pro Fac Was Fac Upp Upp War Turns Passed 15603 | 48 1398 756 828 1697 779 1061 324 590 1171 1417 853 732 1848 146 45 345 184 173 1208 Spaces Moved 9471 | 22 563 193 234 574 282 354 128 183 567 906 635 377 925 213 89 620 499 493 1614 Core 850 | . . . . . . . . . . . . . 27 213 89 520 . . 1 Treads 1852 | . 518 193 2 544 282 300 . 13 . . . . . . . . . . . Legs 1580 | 22 45 . . . . . . . . . . 142 898 . . . . . 473 Wheels 2957 | . . . 232 30 . 54 128 170 567 906 635 235 . . . . . . . Hover . | . . . . . . . . . . . . . . . . . . . . Flight 2232 | . . . . . . . . . . . . . . . . 100 499 493 1140 Fastest Speed 32 | 120 120 160 150 150 240 230 230 230 115 110 125 120 50 50 50 34 34 34 32 Average Speed 130 | 120 200 305 227 235 240 238 234 247 148 128 125 138 154 50 50 47 34 34 56 Slowest Speed 480 | 120 320 480 320 240 240 320 245 320 245 140 125 190 260 50 50 60 34 34 190 Overloaded Moves . | . . . . . . . . . . . . . . . . . . . . Propulsion Burnouts . | . . . . . . . . . . . . . . . . . . . . Robots Hopped 4 | . . . . . . . . . . . . . . . . 4 . . . Potential Cave-ins . | . . . . . . . . . . . . . . . . . . . . Cave-ins Triggered . | . . . . . . . . . . . . . . . . . . . . Exploration Rate (%) 48 | 2 92 12 23 71 9 58 7 96 11 80 67 80 64 7 69 12 68 58 90 Regions Visited 19 Branch Regions 8 Pre-discovered Areas 9 | . 3 1 . . . . . . . 2 . 1 1 . . . . 1 . Known Exits Taken 12 | . 1 . 1 . 1 . 1 . 1 1 1 1 1 . . 1 1 1 . Unknown Exits Taken 2 | 1 . 1 . . . . . . . . . . . . . . . . . Scrap Searched 16 | . . 2 . . . . . . . 4 . . 2 . . . 5 3 . Spaces Dug 65 | . 1 . 8 10 . 24 1 . 16 2 1 . 1 . . . . . 1 Terrain Destroyed 310 | . 1 7 16 45 19 47 1 9 58 54 3 . 36 . . . . . 14 Melee 4 | . . . . . . 1 1 . . . . . 1 . . . . . 1 Projectile 32 | . 1 . 12 . 1 . . . 1 3 3 . 11 . . . . . . AOE 274 | . . 7 4 45 18 46 . 9 57 51 . . 24 . . . . . 13 Terrain Rammed . | . . . . . . . . . . . . . . . . . . . . Walls Destroyed . | . . . . . . . . . . . . . . . . . . . . Machines Disabled . | . . . . . . . . . . . . . . . . . . . . Actions | -11 -10 -10 -8 -8 -7 -7 -7 -7 -6 -6 -6 -6 -5 -5 -5 -5 -5 -5 -5 --------- Run | Yrd Mat Sub Mat Gar Fac Gar Fac DSF Fac Low Low Dat Pro Fac Was Fac Upp Upp War Total 11625 | 29 677 268 455 763 338 470 147 287 747 1081 678 560 1242 250 88 666 510 496 1873 Wait 824 | . 1 1 143 9 . 5 10 30 29 79 18 106 217 29 . 19 . . 128 Move 9448 | 21 562 192 234 573 282 353 127 182 566 905 634 376 924 213 88 612 498 492 1614 Hop 3 | . . . . . . . . . . . . . . . . 3 . . . Pick Up 161 | 1 14 7 18 13 13 3 3 17 19 8 4 8 4 . . 6 . . 23 Fast Attach 89 | . 8 . 3 2 3 2 . 3 7 8 2 8 2 3 . 10 6 2 20 Attach 95 | . 3 7 8 8 5 11 2 5 11 6 . 2 8 2 . 2 . . 15 Detach 33 | . 1 2 2 . . 3 . 2 4 3 . 4 2 2 . 2 3 . 3 Swap 167 | . 2 9 7 30 5 28 3 12 17 14 5 9 21 . . 1 1 . 3 Drop 154 | . 7 . 5 12 9 2 . 14 16 9 6 24 9 . . 10 1 1 29 Fire 537 | 7 76 50 35 83 21 50 . 17 67 49 9 12 33 1 . 1 . . 26 Melee 59 | . . . . . . 4 2 2 11 . . 11 16 . . . 1 1 11 Ram . | . . . . . . . . . . . . . . . . . . . . Kick 4 | . 1 . . . . . . . . . . . 2 . . . . . 1 Crush 2 | . 2 . . . . . . . . . . . . . . . . . . Escape Stasis 27 | . . . . 16 . 8 . 3 . . . . . . . . . . . Rewire 19 | . . . . 17 . . . . . . . . 2 . . . . . . Trap 2 | . . . . . . . . . . . . . 2 . . . . . . Miscellaneous 1 | . . . . . . 1 . . . . . . . . . . . . . Route ------- -11/Scrapyard -10/Materials (discovered 5 exits: [*Mat x3] / [*Min] / *Sub) -10/Subcaves -8/Materials -8/Garrison (discovered 2 exits: *Fac x2) -7/Factory -7/Garrison (discovered 3 exits: *Fac x3) -7/Factory (discovered 3 exits: Low x2 / DSF) -7/DSF -6/Factory -6/Lower Caves -6/Lower Caves (discovered 2 exits: *Fac / *Dat) -6/Data Miner -5/Proximity Caves -5/Factory (discovered 3 exits: Fac x2 / Upp) -5/Waste -5/Factory (discovered 2 exits: *Fac / *Upp) -5/Upper Caves -5/Upper Caves -5/Warlord (discovered 1 exit: [*Pro]) History --------- Turn | Location | Event 1 | -11/Scrapyard | Discovered new exit (range 1) 49 | -11/Scrapyard | Entered Materials 288 | -10/Materials | Discovered new exit (range 12) 322 | -10/Materials | Build established: Mutant 670 | -10/Materials | Discovered new exit (range 10) 928 | -10/Materials | Discovered new exit (range 12) 1161 | -10/Materials | Identified exit to Subcaves 1226 | -10/Materials | Learned location of Recycling (-8) 1281 | -10/Materials | Discovered new exit (range 13) 1326 | -10/Materials | Loaded intel: 9 trap records 1361 | -10/Materials | Learned Recycling recycling unit intel 1447 | -10/Materials | Entered Subcaves 1448 | -10/Subcaves | Approached by a straggling Scientist 1459 | -10/Subcaves | Learned location of Storage (-8) 1477 | -10/Subcaves | A Subdweller sparked back to life 1477 | -10/Subcaves | A Subdweller sparked back to life 1477 | -10/Subcaves | A Subdweller sparked back to life 1491 | -10/Subcaves | Found Prototype Processor 1733 | -10/Subcaves | Lost 6 parts (2n1u3w) 1748 | -10/Subcaves | Core integrity fell below 50% 1986 | -10/Subcaves | Build established: Scavenger-Mutant 2007 | -10/Subcaves | Discovered new exit (range 13) 2084 | -10/Subcaves | Disturbed a concealed Subdweller 2203 | -10/Subcaves | Entered Materials 2203 | -8/Materials | Evolved 4 slots: Propulsion x1, Utility x2, Weapon x1 2767 | -8/Materials | Identified Rainbow Chip 2773 | -8/Materials | Build established: Scavenger-Tank 3031 | -8/Materials | Identified exit to Garrison 3031 | -8/Materials | Entered Garrison 3071 | -8/Garrison | Triggered checkpoint 3210 | -8/Garrison | Triggered checkpoint 3335 | -8/Garrison | Discovered new exit (range 15) 3489 | -8/Garrison | Triggered checkpoint 3581 | -8/Garrison | Garrison Relay disabled 3663 | -8/Garrison | Triggered checkpoint 3705 | -8/Garrison | Garrison Relay disabled 3707 | -8/Garrison | Garrison Relay disabled 3883 | -8/Garrison | Triggered checkpoint 3931 | -8/Garrison | Spotted B-75 Beast 3931 | -8/Garrison | Spotted B-75 Beast 4144 | -8/Garrison | Garrison Relay disabled 4339 | -8/Garrison | Triggered checkpoint 4468 | -8/Garrison | Garrison Relay disabled 4704 | -8/Garrison | Discovered new exit (range 10) 4728 | -8/Garrison | Entered Factory 4728 | -7/Factory | Accompanied by 2 allies 4728 | -7/Factory | Evolved 2 slots: Propulsion x1, Utility x1 5334 | -7/Factory | Lost 3 parts (1n1u1w) 5507 | -7/Factory | Identified exit to Garrison 5507 | -7/Factory | Entered Garrison 5666 | -7/Garrison | Triggered checkpoint 5675 | -7/Garrison | Triggered checkpoint 5707 | -7/Garrison | Destroyed 7 combat bots 5781 | -7/Garrison | Triggered checkpoint 5831 | -7/Garrison | Garrison Relay disabled 5851 | -7/Garrison | Triggered checkpoint 5902 | -7/Garrison | Discovered new exit (range 5) 5983 | -7/Garrison | Discovered new exit (range 14) 6291 | -7/Garrison | Discovered new exit (range 13) 6333 | -7/Garrison | Triggered checkpoint 6387 | -7/Garrison | Garrison Relay disabled 6461 | -7/Garrison | Triggered checkpoint 6469 | -7/Garrison | Lost 5 parts (2n1u2w) 6568 | -7/Garrison | Entered Factory 6797 | -7/Factory | Build established: Scavenger-Mutant 6878 | -7/Factory | Identified exit to Lower Caves 6890 | -7/Factory | Identified exit to DSF 6892 | -7/Factory | Entered DSF 6945 | -7/DSF | Additional patrols routed to DSF 7319 | -7/DSF | Discovered new exit (range 14) 7414 | -7/DSF | Sterilization system engaged 7434 | -7/DSF | Ambient heat levels rising (+10) 7449 | -7/DSF | Ambient heat levels rising (+10) 7464 | -7/DSF | Ambient heat levels rising (+10) 7479 | -7/DSF | Ambient heat levels rising (+10) 7482 | -7/DSF | Entered Factory 7482 | -6/Factory | Evolved 2 slots: Power x1, Utility x1 7666 | -6/Factory | Repaired Lgt. Treads 8208 | -6/Factory | Discovered new exit (range 9) 8254 | -6/Factory | Lost 3 parts (1p1u1w) 8325 | -6/Factory | Identified exit to Lower Caves 8653 | -6/Factory | Entered Lower Caves 8676 | -6/Lower Caves | Met a Warlord Commander 8677 | -6/Lower Caves | Learned location of Warlord (-5) 8678 | -6/Lower Caves | Warlord Commander delivered Encrypted Comm Array 8692 | -6/Lower Caves | Found Encrypted Comm Array 8985 | -6/Lower Caves | Build established: Scavenger-Skirmisher 9830 | -6/Lower Caves | Learned 8 Research zone layouts 9830 | -6/Lower Caves | Learned Research stockpile data 9830 | -6/Lower Caves | Learned Armory stockpile data 9830 | -6/Lower Caves | Learned Factory garrison access intel 9830 | -6/Lower Caves | A Commander dispatched an escort 9953 | -6/Lower Caves | Discovered new exit (range 15) 10015 | -6/Lower Caves | Identified exit to Lower Caves 10070 | -6/Lower Caves | Entered another Lower Caves area 10070 | -6/Lower Caves | Accompanied by 2 allies 10071 | -6/Lower Caves | Commander's escort returned to base 10071 | -6/Lower Caves | Commander's escort returned to base 10077 | -6/Lower Caves | Learned location of 1 exit from Factory 10102 | -6/Lower Caves | Discovered new exit (range 13) 10176 | -6/Lower Caves | Encountered a Warlord checkpoint 10653 | -6/Lower Caves | Learned 8 Factory zone layouts 10800 | -6/Lower Caves | Discovered new exit (range 9) 10808 | -6/Lower Caves | Identified exit to Data Miner 10923 | -6/Lower Caves | Entered Data Miner 10923 | -6/Data Miner | Discovered new exit (range 6) 10947 | -6/Data Miner | Met Data Miner 10968 | -6/Data Miner | Learned location of Section 7 (-2) 10968 | -6/Data Miner | Acquired the access code to Warlord's prototype stash 10987 | -6/Data Miner | Received God Mode back door access code from Data Miner 11039 | -6/Data Miner | Identified exit to Proximity Caves 11082 | -6/Data Miner | Data Conduit disabled 11386 | -6/Data Miner | Found Prototype Device 11386 | -6/Data Miner | Identified Exp. Thermal Shield 11421 | -6/Data Miner | Build established: Scavenger-Gunner 11655 | -6/Data Miner | Entered Proximity Caves 11957 | -5/Proximity Caves | Spotter reported a threat 12069 | -5/Proximity Caves | Spotter reported a threat 12084 | -5/Proximity Caves | Attracted the attention of an 0b10 checkpoint 12451 | -5/Proximity Caves | Build established: Scavenger-Mutant 12609 | -5/Proximity Caves | Attracted the attention of an 0b10 outpost 12615 | -5/Proximity Caves | Lost 3 parts (1n2w) 12839 | -5/Proximity Caves | Core integrity fell below 50% 12928 | -5/Proximity Caves | Lost 12 parts (2p4n2u4w) 13485 | -5/Proximity Caves | Core integrity fell below 20% 13498 | -5/Proximity Caves | Discovered new exit (range 10) 13502 | -5/Proximity Caves | Identified exit to Factory 13503 | -5/Proximity Caves | Entered Factory 13503 | -5/Factory | Evolved 2 slots: Propulsion x1, Utility x1 13504 | -5/Factory | Identified exit to Factory 13505 | -5/Factory | Identified exit to Upper Caves 13506 | -5/Factory | Loaded intel: 4 garrison access locations 13649 | -5/Factory | Manually triggered Chute Trap 13649 | -5/Factory | Sucked down chute 13649 | -5/Factory | Entered Waste 13664 | -5/Waste | EMP discharged 13667 | -5/Waste | Spotted C-40 Crusher 13672 | -5/Waste | Spotted C-40 Crusher 13674 | -5/Waste | Spotted C-40 Crusher 13683 | -5/Waste | Spotted C-40 Crusher 13683 | -5/Waste | Spotted C-40 Crusher 13687 | -5/Waste | Discovered new exit (range 14) 13693 | -5/Waste | Identified exit to Factory 13694 | -5/Waste | Entered Factory 13746 | -5/Factory | Discovered exit to Upper Caves (range 13) 13772 | -5/Factory | Build established: Mutant 13884 | -5/Factory | Discovered exit to Factory (range 16) 13895 | -5/Factory | Spotted B-75 Beast 14039 | -5/Factory | Entered Upper Caves 14142 | -5/Upper Caves | Identified exit to Upper Caves 14177 | -5/Upper Caves | Attached Rainbow Chip, gained temporary slots: Power, Propulsion, Utility, Weapon 14223 | -5/Upper Caves | Entered another Upper Caves area 14241 | -5/Upper Caves | Learned location of Armory (-3) 14290 | -5/Upper Caves | Discovered new exit (range 5) 14292 | -5/Upper Caves | Identified exit to Warlord 14396 | -5/Upper Caves | Entered Warlord 14408 | -5/Warlord | System corruption cleaned by Quarantine Array 14465 | -5/Warlord | Build established: Hacker-Mutant 14517 | -5/Warlord | Learned Research trap positions 14517 | -5/Warlord | Learned Testing trap positions 14517 | -5/Warlord | Learned 4 Armory zone layouts 14517 | -5/Warlord | Learned 4 Testing zone layouts 14517 | -5/Warlord | Learned Armory security intel 14517 | -5/Warlord | Learned Armory recycling unit intel 14517 | -5/Warlord | Learned Armory scanalyzer intel 14517 | -5/Warlord | Learned Research recycling unit intel 14556 | -5/Warlord | Opened Warlord's prototype stash 14558 | -5/Warlord | Found Prototype Device 14558 | -5/Warlord | Identified Exp. Focal Shield 14587 | -5/Warlord | Warlord's base attacked by MAIN.C 14590 | -5/Warlord | Found Prototype Device 14590 | -5/Warlord | Identified Minesniffer Drone Bay 14667 | -5/Warlord | Met Warlord 14695 | -5/Warlord | Found Prototype Hackware 14780 | -5/Warlord | Lost 4 allies 14787 | -5/Warlord | Found Prototype Reactor 14818 | -5/Warlord | Found Prototype Energy Gun 14818 | -5/Warlord | Identified Vortex Shotgun 14822 | -5/Warlord | Found Prototype Piercing Weapon 14825 | -5/Warlord | Found Prototype Piercing Weapon 14937 | -5/Warlord | Warlord forces counterattacked 14961 | -5/Warlord | Spotted Striker 15024 | -5/Warlord | Spotted Striker 15028 | -5/Warlord | Spotted Striker 15066 | -5/Warlord | Lost 10 allies 15091 | -5/Warlord | Spotted Striker 15093 | -5/Warlord | Spotted B-86 Titan 15156 | -5/Warlord | Lost 7 allies 15165 | -5/Warlord | Build established: Scavenger-Mutant 15187 | -5/Warlord | Spotted B-75 Beast 15187 | -5/Warlord | Spotted B-86 Titan 15241 | -5/Warlord | Lost 3 allies 15262 | -5/Warlord | Warlord base infiltrated, sounded retreat 15403 | -5/Warlord | Spotted Striker 15456 | -5/Warlord | Lost 4 allies 15487 | -5/Warlord | Spotted Executioner 15488 | -5/Warlord | Spotted Executioner 15506 | -5/Warlord | P-70 Sage assimilated allied 8O-GZR(m) 15523 | -5/Warlord | Found Adv. Powered Armor 15546 | -5/Warlord | Destroyed Executioner 15571 | -5/Warlord | Lost 7 allies 15584 | -5/Warlord | Found Prototype Launcher 15587 | -5/Warlord | Spotted Striker 15587 | -5/Warlord | Spotted Executioner 15587 | -5/Warlord | Spotted Executioner 15587 | -5/Warlord | Found Prototype Processor 15590 | -5/Warlord | Discovered new exit (range 15) 15598 | -5/Warlord | Core integrity fell below 50% 15598 | -5/Warlord | Identified Exp. Core Analyzer 15600 | -5/Warlord | Identified System Mapper 15603 | -5/Warlord | Core integrity fell below 20% 15604 | -5/Warlord | Destroyed by G-67 Veteran with Field Laser Last Messages --------------- 15598_ Identified Exp. Core Analyzer. 15599_ Dropped Prototype Reactor. 15600_ Slug penetrates Executioner. 15600_ Slug penetrates H-77 Assassin. 15600_ Slug penetrates Earth. 15600_ Dropped Prototype Launcher. 15600_ Identified System Mapper. 15601_ Penetrated by Slug. 15601_ E-15 Imp destroyed. 15601_ Critical hit (Burn: +50). 15601_ Dropped Mak. Ablative Armor. 15601_ Slug penetrates Wall. 15603_ Penetrated by Slug. 15603_ Slug penetrates Wall. 15603_ Dropped Exp. Focal Shield. 15603_ Dropped Lrg. Storage Unit. 15604_ Acquired 2 matter. 15604_ Slug penetrates L-41 Fighter. 15604_ Slug penetrates E-15 Imp. 15604_ E-15 Imp destroyed. Map ----- +----------------------------------------------------+ | ???????????????????????????????????? | | ???????????????????????????????????? | | ???????????????????????????????????? | | ???????????????????????????????????? | | ???????????????????????????????????? | | ???????????????????????????????????? | | ???????????????????????????????????? | | ???????????????????????????????????? | | ???????????????????????????????????? | | ???????????????????????????????????? | | ???????????????????????????????????? | | ???????????????????????????????????? | | ??????????????????????????????